bitfinex/quotes_SOLUSD_20241210
["timestamp","ask_amount","ask_price","bid_price","bid_amount"]
[1733839917504,0.42553191,215.57,215.47,22.65979731]
[1733839917808,0.42553191,215.57,215.48,22.65979731]
[1733839918489,0.42553191,215.57,215.47,22.65979731]
[1733839919111,0.42553191,215.57,215.41,24.153354]
[1733839919112,0.42553191,215.57,215.44,22.65979731]
[1733839919311,0.42553191,215.57,215.45,22.65979731]
[1733839919606,0.42553191,215.57,215.43,22.65979731]
[1733839920590,0.42553191,215.57,215.45,22.65979731]
[1733839920787,0.42553191,215.57,215.46,22.65979731]
[1733839920996,0.42553191,215.57,215.47,22.65979731]
[1733839921203,1.29547288,215.57,215.47,22.65979731]
[1733839921797,1.29547288,215.57,215.46,22.65979731]
[1733839922112,20.0,215.56,215.44,22.65979731]
[1733839922345,0.8699866,215.55,215.41,22.65979731]
[1733839922516,0.8699866,215.55,215.4,23.22703101]
[1733839922517,20.0,215.52,215.4,23.22703101]
[1733839922815,21.29572238,215.51,215.4,0.5672337]
[1733839923017,0.307,215.5,215.4,0.5672337]
[1733839923513,0.42553191,215.49,215.42,22.65979731]
[1733839923817,0.42553191,215.49,215.4,0.5672337]
[1733839923818,0.42553191,215.49,215.46,22.65979731]
[1733839924116,0.65094925,215.64,215.47,23.35576608]
[1733839924321,0.86587686,215.63,215.45,22.65979731]
[1733839924513,0.86587686,215.63,215.47,22.65979731]
[1733839924725,0.86587686,215.63,215.51,22.65979731]
[1733839924899,0.86587686,215.63,215.53,22.65979731]
[1733839925210,0.86587686,215.7,215.57,22.65979731]
[1733839925418,2.81659865,215.68,215.57,22.65979731]
[1733839925635,10.0,215.76,215.54,0.6957193]
[1733839925636,0.84646287,215.69,215.58,23.35542245]
[1733839925828,0.84646287,215.69,215.6,22.65979731]
[1733839925988,0.84646287,215.67,215.6,22.65979731]
[1733839926185,0.84646287,215.67,215.62,22.65979731]
[1733839926609,0.84646287,215.67,215.64,22.65979731]
[1733839926811,0.84646287,215.67,215.65,23.35517163]
[1733839926991,0.84646287,215.67,215.66,22.65979731]
[1733839927606,2.8437952,215.81,215.66,29.12149731]
[1733839927787,0.86587686,215.8,215.7,22.65979731]
[1733839927990,2.8437952,215.81,215.74,22.65979731]
[1733839928190,0.84646287,215.79,215.73,22.65979731]
[1733839928897,0.84646287,215.79,215.76,22.65979731]
[1733839929526,0.84646287,215.79,215.78,22.65979731]
[1733839929836,0.84646287,215.79,215.69,11.5907]
[1733839929837,0.84646287,215.79,215.74,22.65979731]
[1733839930014,0.86587686,215.87,215.75,23.35473046]
[1733839930217,0.86587686,215.87,215.75,22.65979731]
[1733839930398,0.86587686,215.93,215.78,22.65979731]
[1733839930716,0.84646287,215.86,215.78,22.65979731]
[1733839931094,0.84646287,215.86,215.73,22.65979731]
[1733839931293,0.86587686,215.85,215.72,22.65979731]
[1733839932197,0.86587686,215.85,215.75,22.65979731]
[1733839932394,0.84646287,215.86,215.79,22.65979731]
[1733839932935,0.84646287,215.86,215.73,22.65979731]
[1733839933090,0.86587686,215.85,215.7,22.65979731]
[1733839933290,20.86587686,215.85,215.68,1.5335]
[1733839933492,20.86587686,215.85,215.66,6.4617]
[1733839933493,40.86587686,215.85,215.66,6.4617]
[1733839933710,40.86587686,215.85,215.64,22.65979731]
[1733839933928,20.0,215.82,215.68,22.65979731]
[1733839934128,0.86587686,215.81,215.68,22.65979731]
[1733839934341,0.86587686,215.81,215.7,22.65979731]
[1733839934529,0.86587686,215.81,215.66,22.65979731]
[1733839934733,0.86587686,215.81,215.67,23.35504237]
[1733839934939,0.86587686,215.84,215.7,22.65979731]
[1733839935312,0.86587686,215.84,215.73,22.65979731]
[1733839935521,0.86587686,215.84,215.74,22.65979731]
[1733839935736,0.86587686,215.88,215.74,22.65979731]
[1733839935932,0.86587686,215.88,215.72,22.65979731]
[1733839936830,20.0,215.86,215.72,22.65979731]
[1733839937035,0.86587686,215.85,215.72,22.65979731]
[1733839937234,0.86587686,215.85,215.75,22.65979731]
[1733839937420,20.0,215.86,215.77,22.65979731]
[1733839937828,20.0,215.86,215.73,0.69510884]
[1733839937829,0.86587686,215.88,215.79,22.65979731]
[1733839938120,0.86587686,215.95,215.8,23.35473574]
[1733839938316,0.86587686,215.95,215.8,22.65979731]
[1733839938522,2.82516621,215.91,215.81,22.65979731]
[1733839938722,0.86587686,215.98,215.83,22.65979731]
[1733839938933,2.77007088,215.92,215.81,22.65979731]
[1733839939124,2.77007088,215.92,215.79,22.65979731]
[1733839939523,2.77007088,215.92,215.81,22.65979731]
[1733839939728,0.86587686,215.98,215.86,22.65979731]
[1733839939948,0.86587686,215.98,215.87,22.65979731]
[1733839940124,1.83115181,215.99,215.87,22.65979731]
[1733839940320,0.86587686,216.04,215.88,23.3544415]
[1733839940555,0.84646287,215.99,215.89,22.65979731]
[1733839940843,0.84646287,215.99,215.88,23.3544415]
[1733839941051,0.84646287,215.99,215.78,6.2481]
[1733839941052,2.83389936,215.97,215.78,6.2481]
[1733839941265,0.86587686,215.96,215.78,28.90789731]
[1733839941555,20.86587686,215.96,215.76,22.65979731]
[1733839941847,13.89,215.92,215.76,22.65979731]
[1733839942039,20.0,215.89,215.76,22.65979731]
[1733839942355,0.36587686,215.88,215.76,22.65979731]
[1733839942952,0.36587686,215.88,215.77,22.65979731]
[1733839943161,20.36587686,215.93,215.75,22.65979731]
[1733839943759,20.36587686,215.93,215.73,7.8185]
[1733839943760,0.36587686,215.93,215.82,22.65979731]
[1733839943955,0.36587686,215.96,215.82,22.65979731]
[1733839944128,0.36587686,215.96,215.83,23.35459164]
[1733839944334,0.36587686,215.96,215.76,22.65979731]
[1733839944528,1.5269718,215.95,215.75,22.65979731]
[1733839944736,0.36587686,215.94,215.74,22.65979731]
[1733839944950,0.36587686,215.94,215.75,22.65979731]
[1733839945155,20.0,215.91,215.75,22.65979731]
[1733839945367,0.36587686,215.9,215.75,22.65979731]
[1733839945671,0.36587686,215.9,215.72,0.69496943]
[1733839945672,20.0,215.88,215.72,22.65979731]
[1733839945871,0.36587686,215.87,215.72,22.65979731]
[1733839946175,0.36587686,215.87,215.78,22.65979731]
[1733839946372,67.65999189,216.13,215.8,22.65979731]
[1733839946373,0.36587686,215.92,215.8,22.65979731]
[1733839946754,0.36587686,215.96,215.82,22.65979731]
[1733839946963,0.36587686,215.96,215.81,22.65979731]
[1733839947160,0.36587686,215.96,215.8,22.65979731]
[1733839947359,0.36587686,215.96,215.83,22.65979731]
[1733839947783,0.36587686,215.96,215.82,22.65979731]
[1733839948080,0.36587686,215.96,215.84,22.65979731]
[1733839948466,0.36587686,215.96,215.85,22.65979731]
[1733839949191,0.36587686,215.96,215.81,22.65979731]
[1733839949380,0.36587686,215.96,215.8,6.94285135]
[1733839949381,0.36587686,215.96,215.86,22.65979731]
[1733839950271,24.14276086,215.96,215.86,22.65979731]
[1733839950472,2.83389936,215.97,215.88,22.65979731]
[1733839950666,2.83389936,215.97,215.87,22.65979731]
[1733839950872,2.83389936,215.97,215.86,22.65979731]
[1733839951085,0.36587686,215.96,215.83,23.3544158]
[1733839951390,0.36587686,215.96,215.81,22.65979731]
[1733839951592,0.36587686,215.96,215.82,0.69476192]
[1733839951759,0.36587686,215.96,215.8,6.2481]
[1733839951960,20.36587686,215.96,215.79,1.6547]
[1733839952193,20.0,215.86,215.75,6.4841]
[1733839952801,0.36587686,215.85,215.72,23.35462043]
[1733839953023,0.36587686,215.85,215.7,22.65979731]
[1733839953024,23.776884,215.85,215.7,22.65979731]
[1733839953226,20.0,215.82,215.7,22.65979731]
[1733839953536,20.0,215.82,215.69,31.49358158]
[1733839953704,24.14276086,215.81,215.69,8.1388]
[1733839953900,20.0,215.78,215.69,8.1388]
[1733839954102,20.0,215.78,215.67,22.65979731]
[1733839954427,0.36587686,215.88,215.73,22.65979731]
[1733839954727,0.36587686,215.88,215.77,22.65979731]
[1733839954900,0.36587686,215.96,215.84,22.65979731]
[1733839955228,0.36587686,215.96,215.83,22.65979731]
[1733839955537,0.36587686,215.96,215.86,22.65979731]
[1733839955728,1.88503115,215.99,215.86,22.65979731]
[1733839955893,0.36587686,216.04,215.89,22.65979731]
[1733839956319,1.84289713,216.05,215.9,22.65979731]
[1733839956553,2.81987929,216.01,215.9,22.65979731]
[1733839957052,0.36587686,216.0,215.88,22.65979731]
[1733839957349,0.36587686,216.0,215.89,22.65979731]
[1733839957647,20.0,215.97,215.89,22.65979731]
[1733839959049,20.0,215.97,215.88,22.65979731]
[1733839959224,20.0,215.97,215.89,23.35435829]
[1733839959630,20.36587686,216.07,215.93,22.65979731]
[1733839959823,20.0,216.06,215.89,23.35435829]
[1733839960043,20.0,216.06,215.91,22.65979731]
[1733839960044,0.36587686,216.05,215.91,22.65979731]
[1733839960245,0.36587686,216.05,215.94,22.65979731]
[1733839961048,0.36587686,216.07,215.94,22.65979731]
[1733839961222,0.36587686,216.07,215.95,22.65979731]
[1733839961544,0.36587686,216.07,215.89,22.65979731]
[1733839961545,20.0,216.0,215.89,22.65979731]
[1733839961721,20.0,216.0,215.87,1.5144]
[1733839961722,20.0,215.96,215.87,24.17419731]
[1733839961923,20.0,215.96,215.87,22.65979731]
[1733839962117,24.14276086,215.95,215.85,22.65979731]
[1733839962950,24.14276086,215.95,215.84,22.65979731]
[1733839963243,20.0,215.92,215.82,22.65979731]
[1733839963441,20.0,215.92,215.83,22.65979731]
[1733839963619,20.0,215.92,215.84,22.65979731]
[1733839964031,20.0,215.92,215.85,22.65979731]
[1733839964242,20.0,215.92,215.86,22.65979731]
[1733839964549,0.36587686,216.04,215.86,22.65979731]
[1733839964550,20.0,215.99,215.86,22.65979731]
[1733839964859,0.36587686,215.98,215.86,22.65979731]
[1733839965149,20.0,215.95,215.85,22.65979731]
[1733839966047,20.0,215.95,215.86,22.65979731]
[1733839966745,20.0,215.95,215.85,22.65979731]
[1733839966951,24.14276086,215.94,215.83,22.65979731]
[1733839967129,24.14276086,215.94,215.84,22.65979731]
[1733839967732,24.14276086,215.94,215.83,22.65979731]
[1733839967944,20.0,215.91,215.83,22.65979731]
[1733839968260,20.0,215.91,215.84,22.65979731]
[1733839969324,1.84886649,215.96,215.87,22.65979731]
[1733839969666,2.74698811,215.97,215.87,22.65979731]
[1733839969827,2.74698811,215.97,215.88,22.65979731]
[1733839970227,0.36587686,216.0,215.88,22.65979731]
[1733839970457,20.0,216.04,215.85,0.69476908]
[1733839970458,0.36587686,216.03,215.89,22.65979731]
[1733839970971,20.42553192,216.02,215.87,22.65979731]
[1733839971168,2.73447399,215.98,215.85,22.65979731]
[1733839971359,44.14276086,215.97,215.85,22.65979731]
[1733839971667,0.42553192,215.96,215.82,22.65979731]
[1733839971985,20.0,215.92,215.82,22.65979731]
[1733839972283,0.36587686,215.91,215.78,29.07869731]
[1733839972570,0.36587686,215.91,215.78,22.65979731]
[1733839972571,0.79140878,215.91,215.78,22.65979731]
[1733839972747,0.79140878,215.91,215.77,24.32589731]
[1733839973077,20.79140878,215.91,215.74,22.65979731]
[1733839973373,20.0,215.89,215.73,6.4189]
[1733839973547,0.36587686,215.88,215.73,6.4189]
[1733839973748,0.79140878,215.88,215.73,6.4189]
[1733839973954,0.79140878,215.88,215.73,29.07869731]
[1733839974253,0.79140878,215.88,215.76,22.65979731]
[1733839974453,0.42553192,215.88,215.79,22.65979731]
[1733839975049,0.42553192,215.88,215.78,22.65979731]
[1733839975365,0.42553192,215.88,215.75,22.65979731]
[1733839975574,0.36587686,215.87,215.72,24.32589731]
[1733839976063,0.42553192,215.86,215.72,1.6661]
[1733839976264,0.36587686,215.85,215.73,22.65979731]
[1733839976658,0.42553192,215.84,215.73,22.65979731]
[1733839977045,0.42553192,215.84,215.68,6.4189]
[1733839977046,0.36587686,215.83,215.68,22.65979731]
[1733839977263,0.36587686,215.83,215.66,22.65979731]
[1733839977463,0.42553192,215.82,215.66,22.65979731]
[1733839977774,0.36587686,215.81,215.63,22.65979731]
[1733839977950,0.36587686,215.81,215.62,6.4189]
[1733839977951,20.0,215.8,215.62,6.4189]
[1733839978150,20.0,215.8,215.63,22.65979731]
[1733839978151,0.36587686,215.79,215.63,22.65979731]
[1733839978547,0.36587686,215.79,215.62,6.4189]
[1733839978548,0.42553192,215.78,215.64,22.65979731]
[1733839978767,0.36587686,215.77,215.64,22.65979731]
[1733839979183,0.42553192,215.76,215.63,22.65979731]
[1733839979473,0.36587686,215.75,215.63,22.65979731]
[1733839979974,0.42553192,215.74,215.63,22.65979731]
[1733839980364,0.42553192,215.74,215.61,22.65979731]
[1733839980576,2.73491227,215.73,215.59,22.65979731]
[1733839980877,0.79140878,215.72,215.6,22.65979731]
[1733839981957,0.79140878,215.72,215.57,29.06729731]
[1733839982156,0.79140878,215.72,215.56,22.65979731]
[1733839982362,0.79140878,215.72,215.57,22.65979731]
[1733839982887,0.42553192,215.72,215.65,22.65979731]
[1733839983050,0.42553192,215.72,215.66,23.35510622]
[1733839983362,0.42553192,215.72,215.58,22.65979731]
[1733839984081,0.42553192,215.72,215.54,24.26889731]
[1733839984279,0.36587686,215.71,215.55,22.65979731]
[1733839984462,0.36587686,215.71,215.54,24.26889731]
[1733839984651,0.42553192,215.7,215.56,22.65979731]
[1733839985068,0.42553192,215.7,215.57,22.65979731]
[1733839985264,0.42553192,215.7,215.58,22.65979731]
[1733839985465,0.42553192,215.7,215.6,22.65979731]
[1733839985859,0.42553192,215.7,215.61,23.3552383]
[1733839986996,0.42553192,215.7,215.61,0.69544099]
[1733839987283,0.42553192,215.7,215.57,23.35524909]
[1733839987586,0.42553192,215.7,215.54,24.26889731]
[1733839987951,0.79140878,215.7,215.54,24.26889731]
[1733839988558,0.79140878,215.7,215.52,17.6007]
[1733839988559,0.79140878,215.7,215.52,28.66099731]
[1733839988863,23.53338353,215.7,215.5,23.35543935]
[1733839989064,20.0,215.67,215.45,22.65979731]
[1733839989283,20.36587686,215.66,215.44,22.65979731]
[1733839989581,20.0,215.62,215.44,22.65979731]
[1733839989768,0.36587686,215.61,215.44,22.65979731]
[1733839989973,0.79140878,215.61,215.44,22.65979731]
[1733839990275,0.79140878,215.61,215.43,22.65979731]
[1733839990790,0.79140878,215.61,215.41,0.69596364]
[1733839990791,2.80105242,215.59,215.41,0.69596364]
[1733839990973,2.80105242,215.59,215.4,0.5672337]
[1733839990974,20.36587686,215.58,215.4,0.5672337]
[1733839991173,20.0,215.57,215.4,0.5672337]
[1733839991482,0.79140878,215.56,215.4,0.5672337]
[1733839993168,0.79140878,215.56,215.42,22.65979731]
[1733839993478,0.42553192,215.56,215.48,22.65979731]
[1733839993699,0.42553192,215.56,215.5,22.65979731]
[1733839993992,0.42553192,215.56,215.51,0.69577693]
[1733839994287,0.42553192,215.56,215.51,22.65979731]
[1733839994455,0.42553192,215.56,215.53,22.65979731]
[1733839994656,0.42553192,215.56,215.48,6.5821]
[1733839994657,0.42553192,215.56,215.51,22.65979731]
[1733839994962,0.42553192,215.56,215.53,22.65979731]
[1733839995159,0.42553192,215.56,215.54,22.65979731]
[1733839995369,0.42553192,215.56,215.55,22.65979731]
[1733839995566,0.42553192,215.56,215.53,22.65979731]
[1733839995971,0.42553192,215.56,215.55,22.65979731]
[1733839996877,0.42553192,215.56,215.52,22.65979731]
[1733839997080,0.42553192,215.56,215.53,22.65979731]
[1733839997267,0.42553192,215.56,215.54,22.65979731]
[1733839997471,0.42553192,215.56,215.55,22.65979731]
[1733839998358,0.42553192,215.56,215.55,23.35532834]
[1733839999965,0.42553192,215.56,215.55,47.50868234]
[1733840000394,3.192e-05,215.56,215.55,47.50868234]
[1733840000589,0.36587686,215.76,215.56,11.5976]
[1733840000760,0.36587686,215.76,215.62,22.65979731]
[1733840001094,0.36587686,215.78,215.62,22.65979731]
[1733840001387,2.79887999,215.75,215.59,22.65979731]
[1733840001569,2.79887999,215.75,215.57,22.65979731]
[1733840001570,0.36587686,215.74,215.57,22.65979731]
[1733840001896,33.89,215.72,215.52,22.65979731]
[1733840002186,0.36587686,215.71,215.51,22.65979731]
[1733840002478,0.36587686,215.71,215.52,22.65979731]
[1733840002869,20.36587686,215.71,215.52,22.65979731]
[1733840003071,20.0,215.62,215.48,312.0]
[1733840003291,20.0,215.62,215.52,22.65979731]
[1733840003873,20.0,215.63,215.52,22.65979731]
[1733840004079,6.5262,215.67,215.58,22.65979731]
[1733840004284,7.39560989,215.72,215.62,22.65979731]
[1733840004469,7.39560989,215.72,215.6,22.65979731]
[1733840004664,7.39560989,215.72,215.61,0.67711572]
[1733840004983,1.1589,215.71,215.58,22.65979731]
[1733840005174,0.86942883,215.7,215.59,23.33704377]
[1733840005492,2.02831187,215.71,215.6,22.65979731]
[1733840005696,2.02831187,215.71,215.59,0.67724646]
[1733840005697,2.02831187,215.71,215.59,22.65979731]
[1733840005871,2.02831187,215.71,215.6,0.67710383]
[1733840006070,2.02831187,215.71,215.49,22.65979731]
[1733840006071,2.02831187,215.71,215.58,22.65979731]
[1733840006273,2.02831187,215.71,215.57,22.65979731]
[1733840006463,2.02831187,215.71,215.56,22.65979731]
[1733840006664,20.0,215.69,215.57,22.65979731]
[1733840006864,0.86947207,215.68,215.57,22.65979731]
[1733840007083,0.86947207,215.68,215.58,22.65979731]
[1733840007298,20.0,215.69,215.58,23.3371402]
[1733840007467,0.86942315,215.68,215.58,23.3371402]
[1733840007863,0.86942315,215.68,215.56,22.65979731]
[1733840008182,2.02852315,215.68,215.56,22.65979731]
[1733840008374,2.02852315,215.68,215.53,22.65979731]
[1733840008574,2.02852315,215.68,215.49,22.65979731]
[1733840008774,2.02852315,215.68,215.44,22.65979731]
[1733840008775,20.0,215.59,215.44,22.65979731]
[1733840008977,0.86992252,215.58,215.44,23.33803115]
[1733840009492,0.86992252,215.58,215.46,22.65979731]
[1733840009990,20.0,215.59,215.47,22.65979731]
[1733840010192,20.0,215.59,215.48,23.33778592]
[1733840010402,20.0,215.59,215.49,22.65979731]
[1733840010574,20.0,215.59,215.5,0.67789485]
[1733840010770,6.0052,215.62,215.52,22.65979731]
[1733840010974,6.0052,215.62,215.54,22.65979731]
[1733840011284,6.0052,215.62,215.53,22.65979731]
[1733840011668,6.0052,215.62,215.48,0.67753153]
[1733840011669,0.86963364,215.61,215.5,22.65979731]
[1733840012096,0.86963364,215.61,215.51,23.33766963]
[1733840012277,0.86963364,215.61,215.51,0.67787232]
[1733840014095,20.0,215.59,215.45,23.33774345]
[1733840014277,0.86991482,215.58,215.45,23.33774345]
[1733840014484,20.0,215.57,215.42,0.67821155]
[1733840014801,0.86995783,215.56,215.44,22.65979731]
[1733840014989,20.86995783,215.56,215.44,22.65979731]
[1733840015198,20.86995783,215.56,215.42,23.33800886]
[1733840015374,20.0,215.54,215.42,0.67821155]
[1733840015568,20.0,215.54,215.41,22.65979731]
[1733840015569,20.0,215.51,215.41,22.65979731]
[1733840015775,0.87009242,215.51,215.42,0.67857364]
[1733840016080,20.87009242,215.51,215.4,0.5672337]
[1733840016286,6.5074,215.5,215.4,0.5672337]
[1733840016493,0.87026596,215.49,215.4,0.5672337]
[1733840016695,20.0,215.47,215.4,0.5672337]
[1733840016894,0.87026596,215.49,215.4,0.5672337]
[1733840016895,20.87031504,215.46,215.4,0.5672337]
[1733840017099,20.0,215.44,215.31,24.20979731]
[1733840017276,20.0,215.42,215.31,24.88906375]
[1733840017475,20.0,215.42,215.32,22.65979731]
[1733840017695,0.87048673,215.41,215.28,22.65979731]
[1733840017997,0.87048673,215.41,215.29,23.33915957]
[1733840017998,20.0,215.4,215.29,23.33915957]
[1733840018185,20.0,215.4,215.3,22.65979731]
[1733840018383,8.08990928,215.44,215.35,22.65979731]
[1733840018689,0.87039093,215.43,215.32,22.65979731]
[1733840019181,0.87039093,215.43,215.28,0.67917066]
[1733840019182,20.0,215.41,215.29,22.65979731]
[1733840019373,20.0,215.4,215.3,23.33930403]
[1733840019778,20.0,215.4,215.31,22.65979731]
[1733840019992,0.87053315,215.39,215.3,0.67950672]
[1733840020209,20.0,215.4,215.3,23.33930403]
[1733840020698,7.21934201,215.44,215.34,22.65979731]
[1733840020910,7.21934201,215.44,215.35,23.33890642]
[1733840021082,7.21934201,215.46,215.35,0.67910911]
[1733840021395,7.21934201,215.47,215.36,22.65979731]
[1733840021580,8.0896411,215.48,215.38,22.65979731]
[1733840021788,8.0896411,215.48,215.37,0.67900249]
[1733840021985,8.0896411,215.48,215.37,23.3387998]
[1733840022182,0.87029909,215.48,215.37,0.67900249]
[1733840022598,8.0896411,215.48,215.37,0.67900249]
[1733840022779,8.0896411,215.48,215.31,11.6111]
[1733840022780,7.21934201,215.47,215.34,22.65979731]
[1733840022978,8.08972099,215.46,215.34,22.65979731]
[1733840023178,0.87037898,215.46,215.34,20.0]
[1733840023398,0.87037898,215.46,215.34,43.33908487]
[1733840024302,20.0,215.47,215.36,22.65979731]
[1733840024605,20.0,215.47,215.37,0.67898648]
[1733840024800,0.87029884,215.46,215.37,0.67898648]
[1733840025185,20.0,215.47,215.37,0.67898648]
[1733840025803,20.0,215.47,215.41,22.65979731]
[1733840026118,20.0,215.47,215.33,0.67865961]
[1733840026119,0.8701354,215.46,215.33,0.67865961]
[1733840026277,0.8701354,215.46,215.3,23.3391004]
[1733840026477,0.8701354,215.46,215.29,22.65979731]
[1733840026902,20.0,215.45,215.29,22.65979731]
[1733840027109,0.87060764,215.44,215.31,22.65979731]
[1733840027291,20.0,215.45,215.35,22.65979731]
[1733840027493,20.0,215.47,215.37,22.65979731]
[1733840027693,8.37924201,215.53,215.38,0.67891834]
[1733840027884,14.43858397,215.55,215.45,22.65979731]
[1733840027885,8.08944376,215.54,215.45,22.65979731]
[1733840028093,6.5074,215.55,215.44,22.65979731]
[1733840028297,0.87007373,215.54,215.44,22.65979731]
[1733840028709,6.5074,215.55,215.45,23.33822006]
[1733840028885,0.86995051,215.54,215.45,0.67842275]
[1733840029085,0.86995051,215.54,215.44,22.65979731]
[1733840029286,0.86995051,215.54,215.45,0.67843211]
[1733840029508,0.86999569,215.54,215.45,0.67843211]
[1733840029910,1.83570932,215.58,215.48,22.65979731]
[1733840030108,0.86999569,215.59,215.49,0.67801707]
[1733840030292,0.86981413,215.57,215.46,22.65979731]
[1733840030498,0.86988968,215.56,215.45,22.65979731]
[1733840030702,0.86988968,215.56,215.46,0.67823994]
[1733840030898,0.42556383,215.55,215.47,22.65979731]
[1733840031112,0.42556383,215.55,215.48,0.67807694]
[1733840031619,0.42556383,215.55,215.49,22.65979731]
[1733840031801,0.42556383,215.55,215.5,0.67801184]
[1733840032332,0.42556383,215.55,215.5,23.33780915]
[1733840032621,0.42556383,215.55,215.48,21.95980915]
[1733840032788,0.42556383,215.55,215.47,22.65979731]
[1733840032989,0.42556383,215.55,215.46,22.65979731]
[1733840033194,0.42556383,215.55,215.44,22.65979731]
[1733840033417,1.29557807,215.55,215.43,22.65979731]
[1733840033625,0.42556383,215.55,215.45,22.65979731]
[1733840033924,0.42556383,215.55,215.46,22.65979731]
[1733840034095,0.42556383,215.55,215.47,22.65979731]
[1733840034305,0.42556383,215.55,215.48,22.65979731]
[1733840034492,0.42556383,215.55,215.47,22.65979731]
[1733840035128,0.42556383,215.55,215.4,0.25098]
[1733840035129,0.42556383,215.55,215.5,22.65979731]
[1733840035428,0.42556383,215.55,215.42,41.6052]
[1733840035601,0.42556383,215.55,215.54,22.65979731]
[1733840036132,0.42556383,215.55,215.53,22.65979731]
[1733840036622,0.42556383,215.55,215.54,22.65979731]
[1733840036802,0.42556383,215.55,215.51,22.65979731]
[1733840038004,0.42556383,215.55,215.5,22.65979731]
[1733840038400,0.42556383,215.55,215.47,22.65979731]
[1733840038597,0.42556383,215.55,215.42,23.776884]
[1733840038805,0.42556383,215.55,215.44,22.65979731]
[1733840039004,0.42556383,215.55,215.45,22.65979731]
[1733840039530,0.42556383,215.55,215.46,22.65979731]
[1733840039726,0.42556383,215.55,215.45,22.65979731]
[1733840040241,0.42556383,215.55,215.46,22.65979731]
[1733840040706,0.42556383,215.55,215.44,22.65979731]
[1733840041042,1.29551667,215.55,215.44,22.65979731]
[1733840041200,1.29551667,215.55,215.43,22.65979731]
[1733840042032,0.42556383,215.55,215.43,22.65979731]
[1733840042630,0.42556383,215.55,215.45,22.65979731]
[1733840043032,20.42556383,215.55,215.42,20.0]
[1733840043242,0.86994675,215.54,215.42,42.65979731]
[1733840043544,0.42556383,215.53,215.43,22.65979731]
[1733840044237,7.66336383,215.53,215.4,22.65979731]
[1733840044449,20.0,215.5,215.37,22.65979731]
[1733840044625,0.87026511,215.49,215.36,22.65979731]
[1733840044941,1.29582894,215.49,215.36,22.65979731]
[1733840045136,0.42556383,215.49,215.48,22.65979731]
[1733840045930,0.42556383,215.49,215.47,22.65979731]
[1733840046348,0.42556383,215.49,215.46,22.65979731]
[1733840046559,0.42556383,215.49,215.38,1.5488]
[1733840046735,0.42556383,215.49,215.4,22.65979731]
[1733840047249,0.42556383,215.49,215.39,22.65979731]
[1733840048159,0.42556383,215.49,215.44,22.65979731]
[1733840048327,0.42556383,215.49,215.46,22.65979731]
[1733840048527,0.42556383,215.49,215.45,22.65979731]
[1733840048730,0.42556383,215.49,215.44,22.65979731]
[1733840049127,0.42556383,215.49,215.45,22.65979731]
[1733840051453,0.42556383,215.49,215.42,20.0]
[1733840051830,0.42556383,215.49,215.39,22.65979731]
[1733840052031,0.42556383,215.49,215.38,24.20859731]
[1733840052231,0.42556383,215.49,215.38,1.5488]
[1733840052934,20.0,215.45,215.35,22.65979731]
[1733840053162,0.87039085,215.44,215.34,22.65979731]
[1733840053348,1.29595468,215.44,215.32,22.65979731]
[1733840053753,1.1604,215.43,215.31,22.65979731]
[1733840053954,0.87054123,215.42,215.3,22.65979731]
[1733840054268,0.87054123,215.42,215.28,11.6126]
[1733840054269,0.42556383,215.42,215.34,22.65979731]
[1733840054483,0.42556383,215.42,215.37,22.65979731]
[1733840054650,0.42556383,215.42,215.38,22.65979731]
[1733840054949,0.42556383,215.42,215.36,22.65979731]
[1733840055575,0.42556383,215.42,215.35,22.65979731]
[1733840055949,0.42556383,215.42,215.34,22.65979731]
[1733840056149,0.42556383,215.42,215.35,22.65979731]
[1733840057052,0.42556383,215.42,215.38,22.65979731]
[1733840057571,0.42556383,215.42,215.37,22.65979731]
[1733840057752,0.42556383,215.42,215.36,22.65979731]
[1733840058177,0.42556383,215.42,215.37,22.65979731]
[1733840058848,0.42556383,215.42,215.41,22.65979731]
[1733840060081,0.42556383,215.42,215.41,22.78528731]
[1733840060376,6.383e-05,215.42,215.41,34.64196731]
[1733840060583,0.86983478,215.55,215.44,20.0]
[1733840060788,0.86997735,215.58,215.46,22.65979731]
[1733840061862,20.0,215.56,215.46,22.65979731]
[1733840062207,20.0,215.56,215.48,22.65979731]
[1733840062371,0.86985301,215.55,215.45,22.65979731]
[1733840063075,0.86985301,215.55,215.42,22.65979731]
[1733840063278,0.86985301,215.55,215.4,22.65979731]
[1733840063279,1.1598,215.54,215.4,22.65979731]
[1733840063477,0.87018542,215.53,215.4,22.65979731]
[1733840064089,0.87018542,215.53,215.44,22.65979731]
[1733840064483,0.87018542,215.53,215.45,22.65979731]
[1733840064696,1.1596,215.58,215.39,11.85728]
[1733840064697,20.0,215.55,215.46,22.65979731]
[1733840065084,0.86996899,215.54,215.46,22.65979731]
[1733840065284,20.8700015,215.55,215.46,22.65979731]
[1733840066002,20.0,215.55,215.48,22.65979731]